bitfinex/quotes_ETHUSD_20241023
["timestamp","ask_amount","ask_price","bid_price","bid_amount"]
[1729670100602,3.45615,2604.1,2603.8,1.49721987]
[1729670100833,3.45615,2604.1,2603.8,0.5786]
[1729670103127,3.45596,2604.2,2603.8,0.5786]
[1729670103487,3.45588,2604.3,2603.8,5.81224931]
[1729670103702,3.45588,2604.3,2603.8,5.73544678]
[1729670103934,3.45588,2604.3,2603.8,7.01903985]
[1729670105009,0.7643,2604.4,2603.9,0.07680021]
[1729670105226,3.45588,2604.3,2603.9,0.07680021]
[1729670105394,2.46467678,2604.4,2603.9,0.07680021]
[1729670105596,5.92036678,2604.4,2603.9,3.45633]
[1729670105841,5.92036678,2604.4,2603.9,3.5331299]
[1729670106599,3.45565,2604.5,2604.0,1.70037678]
[1729670106828,5.15575678,2604.7,2604.2,0.5786]
[1729670107025,3.45538,2604.7,2604.2,2.27897678]
[1729670107418,3.4555,2604.6,2604.2,0.5786]
[1729670107717,5.15587678,2604.6,2604.2,0.5786]
[1729670108034,3.4555,2604.6,2604.2,0.5786]
[1729670109100,5.15587678,2604.6,2604.2,0.5786]
[1729670109299,3.4555,2604.6,2604.2,0.5786]
[1729670110347,3.45538,2604.7,2604.3,1.70037678]
[1729670110532,3.45516,2604.8,2604.3,2.27388246]
[1729670110728,5.15553678,2604.8,2604.3,0.57350568]
[1729670111154,1.70037678,2604.7,2604.3,0.57350568]
[1729670112822,1.70037678,2604.6,2604.3,0.57350568]
[1729670113024,1.70037678,2604.5,2604.2,0.5786]
[1729670113258,5.15600678,2604.5,2604.0,0.5786]
[1729670113665,3.45563,2604.5,2604.0,0.5786]
[1729670114234,3.45563,2604.5,2604.0,2.27897678]
[1729670114434,3.45563,2604.5,2604.0,0.5786]
[1729670114635,3.45563,2604.5,2604.0,2.27897678]
[1729670115153,3.45563,2604.5,2604.1,1.70037678]
[1729670115358,3.45563,2604.5,2604.1,0.91914968]
[1729670115725,3.45563,2604.5,2604.1,2.61952646]
[1729670116669,7.66631,2604.5,2604.1,0.91914968]
[1729670116839,7.66631,2604.5,2604.0,0.5786]
[1729670117044,4.21063,2604.5,2604.0,4.03473]
[1729670117239,4.21063,2604.5,2604.0,5.73510678]
[1729670117549,4.21063,2604.5,2604.0,4.90824068]
[1729670118258,7.66626,2604.5,2604.0,1.45211068]
[1729670118559,4.21063,2604.5,2604.0,1.45211068]
[1729670119063,4.21063,2604.5,2604.0,4.90833068]
[1729670120479,4.21063,2604.5,2604.0,6.60870746]
[1729670120638,4.21063,2604.5,2604.1,6.16295453]
[1729670120835,5.90725678,2604.7,2604.1,6.23974831]
[1729670121074,5.90725678,2604.7,2604.1,6.16288453]
[1729670121253,3.45538,2604.7,2604.3,1.70037678]
[1729670121440,3.45517,2604.8,2604.4,0.5786]
[1729670121796,3.45539,2604.7,2604.4,0.5786]
[1729670122158,5.15554678,2604.8,2604.4,0.5786]
[1729670122542,3.45565,2604.5,2604.0,4.32971068]
[1729670122735,5.15584678,2604.6,2604.0,5.15657678]
[1729670122964,3.45558,2604.5,2604.0,5.15657678]
[1729670123347,3.45571,2604.4,2603.9,4.03494]
[1729670123549,1.70037678,2604.0,2603.7,0.80412186]
[1729670123753,3.45615,2604.1,2603.8,3.29]
[1729670124957,3.45615,2604.1,2603.6,5.73571678]
[1729670125157,3.45615,2604.1,2603.7,0.66166485]
[1729670125360,3.45615,2604.1,2603.7,2.36204163]
[1729670126059,6.91232,2604.1,2603.7,0.66166485]
[1729670126280,3.45615,2604.1,2603.7,0.66166485]
[1729670126488,6.91231,2604.1,2603.7,0.66166485]
[1729670126701,3.45615,2604.1,2603.6,0.5786]
[1729670127002,3.45628,2604.0,2603.6,0.5786]
[1729670127357,6.91236,2604.1,2603.6,2.27897678]
[1729670128359,3.45622,2604.0,2603.6,2.27897678]
[1729670128696,3.45622,2604.0,2603.6,3.28634363]
[1729670129485,3.45622,2604.0,2603.6,1.58596685]
[1729670129984,3.45642,2603.9,2603.6,0.5786]
[1729670130276,0.7897,2603.9,2603.5,5.15724678]
[1729670131870,3.45622,2604.0,2603.5,5.15724678]
[1729670132389,3.45622,2604.0,2603.6,1.70037678]
[1729670132576,4.2488,2604.1,2603.6,6.07638146]
[1729670133303,3.45603,2604.2,2603.9,1.70037678]
[1729670133459,4.26542,2604.3,2603.8,5.15684678]
[1729670133660,0.8096,2604.3,2603.9,3.45627]
[1729670133858,0.8096,2604.3,2603.9,4.37545468]
[1729670134709,4.26547,2604.3,2603.9,0.91918468]
[1729670135157,3.45597,2604.2,2603.9,0.91918468]
[1729670135500,3.45615,2604.1,2603.7,0.5786]
[1729670137432,3.45615,2604.1,2603.7,2.27897678]
[1729670139967,3.45615,2604.1,2603.7,0.5786]
[1729670140290,3.45615,2604.1,2603.7,2.27897678]
[1729670141114,3.45615,2604.1,2603.7,0.5786]
[1729670141323,3.45615,2604.1,2603.7,3.27863564]
[1729670142591,3.45615,2604.1,2603.7,6.73524564]
[1729670144828,3.45615,2604.1,2603.7,6.81205146]
[1729670145311,4.26543,2604.3,2603.7,6.73524564]
[1729670145510,3.456,2604.2,2603.7,5.03486886]
[1729670145715,3.456,2604.2,2603.8,0.75393675]
[1729670145930,5.96580678,2604.3,2603.7,0.5786]
[1729670145931,3.45629,2604.0,2603.7,0.5786]
[1729670146073,3.45629,2604.0,2603.5,4.66300279]
[1729670146074,3.45629,2604.0,2603.5,4.83954186]
[1729670146278,3.45629,2604.0,2603.5,1.38272186]
[1729670146531,3.45647,2603.9,2603.5,0.5786]
[1729670146817,3.45647,2603.9,2603.5,2.27897678]
[1729670146990,3.45647,2603.9,2603.5,3.39930892]
[1729670147191,3.45629,2604.0,2603.5,6.85618892]
[1729670147516,3.45635,2603.9,2603.5,6.85618892]
[1729670149429,3.45629,2604.0,2603.5,6.85618892]
[1729670149573,3.45629,2604.0,2603.6,1.70037678]
[1729670149777,3.45629,2604.0,2603.6,2.47408889]
[1729670150218,4.26542,2604.3,2603.8,1.70037678]
[1729670150419,4.26542,2604.3,2603.7,0.65541025]
[1729670150420,4.26542,2604.3,2603.7,5.73548678]
[1729670150779,3.45602,2604.2,2603.7,5.73548678]
[1729670151126,3.45602,2604.2,2603.7,6.81249786]
[1729670151995,3.45602,2604.2,2603.7,5.11212108]
[1729670154390,3.45602,2604.2,2603.7,6.81249786]
[1729670155699,3.45602,2604.2,2603.7,5.11212108]
[1729670157390,3.45602,2604.2,2603.7,1.65561108]
[1729670157592,3.45615,2604.1,2603.7,1.65561108]
[1729670158311,3.45602,2604.2,2603.7,5.11221108]
[1729670158703,6.91206,2604.2,2603.7,5.11221108]
[1729670160283,3.45619,2604.1,2603.7,1.65561108]
[1729670160483,3.45619,2604.1,2603.7,0.5786]
[1729670161301,3.45619,2604.1,2603.7,4.03519]
[1729670161894,1.70037678,2603.8,2603.6,0.80412186]
[1729670162119,3.45695,2603.5,2603.0,0.5786]
[1729670162584,5.15732678,2603.5,2603.0,4.03612]
[1729670163529,8.61428678,2603.5,2603.0,4.03612]
[1729670163757,5.15732678,2603.5,2603.0,4.03612]
[1729670163959,5.15732678,2603.5,2603.0,0.5786]
[1729670164319,3.45644,2603.9,2603.4,2.27897678]
[1729670164720,3.45644,2603.9,2603.4,0.5786]
[1729670164940,0.8255,2604.1,2603.5,3.45679]
[1729670165124,3.45728,2603.2,2603.1,2.01030465]
[1729670165448,3.45728,2603.2,2602.6,0.195358]
[1729670165449,3.45794,2602.7,2602.6,0.195358]
[1729670165619,5.96961678,2602.7,2602.6,0.195358]
[1729670165815,4.26924,2602.7,2602.6,0.195358]
[1729670167535,0.8113,2602.7,2602.6,0.195358]
[1729670167737,3.45782,2602.8,2602.6,0.195358]
[1729670168229,3.45794,2602.7,2602.6,0.195358]
[1729670168559,8.61610678,2602.8,2602.6,0.195358]
[1729670168760,8.61609678,2602.8,2602.6,0.195358]
[1729670170531,5.15819678,2602.8,2602.6,0.195358]
[1729670172651,3.45794,2602.7,2602.6,0.195358]
[1729670173324,5.15819678,2602.8,2602.6,0.195358]
[1729670176149,3.45782,2602.8,2602.6,0.195358]
[1729670179582,2.48027678,2602.9,2602.6,0.195358]
[1729670179583,0.7799,2602.9,2602.6,2.47433478]
[1729670179756,3.45756,2603.0,2602.6,3.07528481]
[1729670179959,5.15793678,2603.0,2602.6,0.773958]
[1729670180150,4.28982,2603.1,2602.6,5.93231478]
[1729670180390,3.45752,2603.1,2602.7,1.70037678]
[1729670180592,3.45752,2603.1,2602.6,5.93231478]
[1729670180790,3.45752,2603.1,2602.6,6.87905549]
[1729670181195,5.15789678,2603.1,2602.6,5.17867871]
[1729670181500,3.45756,2603.0,2602.6,1.72069871]
[1729670181651,5.15789678,2603.1,2602.6,1.72069871]
[1729670183576,5.15789678,2603.1,2602.6,5.17876871]
[1729670183756,3.45752,2603.1,2602.7,0.68791455]
[1729670184656,2.52497678,2603.3,2602.8,3.45779]
[1729670184657,4.28181,2603.3,2602.8,3.45779]
[1729670184955,3.45721,2603.3,2603.0,0.5786]
[1729670185796,5.15758678,2603.3,2603.0,0.5786]
[1729670186094,3.45721,2603.3,2603.0,0.5786]
[1729670186697,1.70037678,2603.2,2602.8,4.03639]
[1729670186897,1.70037678,2603.2,2602.8,5.04419293]
[1729670187462,5.15758678,2603.3,2602.8,8.50192293]
[1729670187700,5.15758678,2603.3,2602.8,5.04413293]
[1729670188001,5.15758678,2603.3,2602.8,8.50184293]
[1729670188201,5.15758678,2603.3,2602.9,3.45766]
[1729670188381,5.15758678,2603.3,2602.9,4.30783729]
[1729670188895,1.70037678,2603.2,2602.9,0.85017729]
[1729670189069,1.70037678,2603.2,2602.8,4.03631]
[1729670190399,5.15758678,2603.3,2602.8,4.03631]
[1729670191571,3.45721,2603.3,2602.8,5.73668678]
[1729670191906,3.45721,2603.3,2602.8,4.03631]
[1729670192102,8.61481678,2603.3,2602.8,4.03631]
[1729670192779,5.15758678,2603.3,2602.8,4.03631]
[1729670192986,5.15758678,2603.3,2602.8,4.97531248]
[1729670193376,8.61479678,2603.3,2602.8,4.97531248]
[1729670193570,7.6715,2603.5,2602.9,5.15804678]
[1729670193771,9.37187678,2603.5,2602.9,3.45767]
[1729670193984,5.15739678,2603.4,2602.9,4.47100593]
[1729670194363,5.15752678,2603.3,2602.9,1.01333593]
[1729670194568,8.61476678,2603.3,2602.8,4.03641]
[1729670194765,3.45729,2603.2,2602.8,0.5786]
[1729670195607,1.70037678,2602.9,2602.6,0.773958]
[1729670195808,1.70037678,2603.0,2602.6,0.773958]
[1729670195991,3.45774,2602.9,2602.6,0.773958]
[1729670197880,6.9153,2603.0,2602.6,0.773958]
[1729670198060,3.45768,2602.9,2602.6,1.71303748]
[1729670200070,3.45768,2602.9,2602.6,0.773958]
[1729670200265,3.45768,2602.9,2602.6,0.195358]
[1729670200470,3.45765,2603.0,2602.6,0.195358]
[1729670200705,3.45768,2602.9,2602.6,0.195358]
[1729670200917,3.45765,2603.0,2602.6,0.195358]
[1729670201625,3.45765,2603.0,2602.7,0.5786]
[1729670202385,4.28974,2603.1,2602.7,0.5786]
[1729670203000,3.45755,2603.0,2602.7,0.5786]
[1729670203536,1.70037678,2603.3,2602.7,0.5786]
[1729670203537,0.8055,2603.3,2602.7,2.53409424]
[1729670203690,0.8055,2603.3,2602.7,2.61093412]
[1729670204198,3.45735,2603.2,2602.8,1.70037678]
[1729670204385,3.45735,2603.2,2602.7,6.06880412]
[1729670204582,3.45738,2603.2,2602.7,2.61093412]
[1729670204821,3.45738,2603.2,2602.8,0.97222921]
[1729670205020,3.45738,2603.2,2602.8,2.67260599]
[1729670205227,3.45738,2603.2,2602.8,0.97222921]
[1729670205390,3.45738,2603.2,2602.8,2.67260599]
[1729670205994,4.26272,2603.3,2602.8,6.13035599]
[1729670206305,3.45722,2603.3,2603.0,0.5786]
[1729670209119,3.45715,2603.3,2603.0,2.27897678]
[1729670209314,3.45715,2603.3,2603.0,0.5786]
[1729670210446,3.45701,2603.4,2603.0,0.5786]
[1729670210447,3.45729,2603.2,2603.0,0.5786]
[1729670211444,3.45715,2603.3,2603.0,0.5786]
[1729670213641,6.91439,2603.3,2603.0,0.5786]
[1729670213950,3.45715,2603.3,2603.0,0.5786]
[1729670214821,6.9144,2603.3,2603.0,0.5786]
[1729670215323,3.45715,2603.3,2603.0,0.5786]
[1729670217656,4.24738,2603.5,2603.0,4.03612]
[1729670217944,5.94775678,2603.5,2603.0,4.03612]
[1729670218113,5.94775678,2603.5,2603.0,0.5786]
[1729670218114,3.45711,2603.4,2603.0,0.5786]
[1729670219853,3.45711,2603.4,2603.0,1.57844886]
[1729670221457,4.284,2603.7,2603.3,1.70037678]
[1729670221661,3.45688,2603.5,2603.4,0.5786]
[1729670222453,3.45688,2603.5,2602.7,0.80412186]
[1729670222454,0.8273,2603.4,2602.7,0.80412186]
[1729670222654,3.45748,2603.1,2602.6,6.73646664]
[1729670222860,3.45748,2603.1,2602.6,7.37242972]
[1729670223214,3.45748,2603.1,2602.7,1.70037678]
[1729670226663,3.45748,2603.1,2602.7,5.15831678]
[1729670226838,3.45748,2603.1,2602.8,1.70037678]
[1729670227050,3.45723,2603.3,2602.7,5.15831678]
[1729670227249,4.28433,2603.4,2603.1,1.70037678]
[1729670227618,4.28433,2603.4,2603.0,1.70037678]
[1729670227760,3.45703,2603.4,2603.0,1.70037678]
[1729670228891,3.45703,2603.4,2602.9,5.73658678]
[1729670229476,3.45703,2603.4,2602.9,4.74833156]
[1729670229635,3.45703,2603.4,2602.9,4.03621]
[1729670229835,3.45703,2603.4,2602.9,5.73658678]
[1729670230436,3.4569,2603.5,2603.0,3.4575]
[1729670230634,3.4569,2603.5,2603.0,5.15787678]
[1729670230874,3.4569,2603.5,2603.0,1.70037678]
[1729670231071,3.4569,2603.5,2603.1,3.4574]
[1729670231793,3.4569,2603.5,2603.1,5.15777678]
[1729670231964,3.4569,2603.5,2603.1,3.4574]
[1729670232986,3.4569,2603.5,2603.0,2.43621246]
[1729670233284,3.45703,2603.4,2603.0,2.43621246]
[1729670233492,3.45703,2603.4,2603.0,0.73583568]
[1729670234215,3.4569,2603.5,2603.0,0.73583568]
[1729670234352,3.45703,2603.4,2602.9,9.19411678]
[1729670234550,3.45703,2603.4,2602.9,5.73651678]
[1729670235189,3.45703,2603.4,2603.0,1.70037678]
[1729670235392,6.91389,2603.5,2603.0,5.15791678]
[1729670235687,3.45702,2603.4,2603.0,1.70037678]
[1729670236283,3.45702,2603.4,2602.9,5.73651678]
[1729670236487,3.45702,2603.4,2602.9,5.23837096]
[1729670236685,3.45702,2603.4,2602.9,6.93874774]
[1729670238082,3.45702,2603.4,2603.0,1.70037678]
[1729670239080,3.4569,2603.5,2603.0,1.70037678]
[1729670239278,3.4569,2603.5,2603.0,5.15787678]
[1729670239803,3.45703,2603.4,2603.0,1.70037678]
[1729670239997,3.4569,2603.5,2603.0,1.70037678]
[1729670240204,3.4569,2603.5,2603.0,5.15789678]
[1729670240629,6.9139,2603.5,2603.0,5.15789678]
[1729670241117,3.4569,2603.5,2603.0,5.15789678]
[1729670241482,3.45703,2603.4,2602.9,3.48120774]
[1729670242012,3.45703,2603.4,2603.0,1.70037678]
[1729670243215,3.45703,2603.4,2603.0,2.82044474]
[1729670245138,3.4569,2603.5,2603.0,2.82044474]
[1729670245415,3.4569,2603.5,2603.0,6.27794474]
[1729670245574,3.4569,2603.5,2603.1,1.70037678]
[1729670245780,3.4569,2603.5,2603.0,6.27794474]
[1729670246001,3.4569,2603.5,2603.0,2.82044474]
[1729670246312,3.45704,2603.4,2603.0,2.82044474]
[1729670248317,3.45704,2603.4,2603.0,6.27798474]
[1729670248696,3.45704,2603.4,2603.1,1.11182966]
[1729670248884,3.45704,2603.4,2603.0,1.70037678]
[1729670249603,3.45716,2603.3,2603.0,1.70037678]
[1729670249810,3.45741,2603.1,2602.9,0.80412186]
[1729670250012,3.45741,2603.1,2602.7,3.08309864]
[1729670250824,3.45761,2603.0,2602.6,0.99947986]
[1729670250997,3.45761,2603.0,2602.6,2.69985664]
[1729670251503,3.45761,2603.0,2602.7,1.70037678]
[1729670251895,3.45758,2603.0,2602.7,1.70037678]
[1729670253083,3.45758,2603.0,2602.6,2.69985664]
[1729670253287,3.45758,2603.0,2602.6,4.30079696]
[1729670253935,3.45758,2603.0,2602.7,1.70037678]
[1729670255719,0.8123,2603.0,2602.6,3.4966751]
[1729670255923,3.45784,2602.8,2602.6,0.195358]
[1729670256121,3.45794,2602.7,2602.6,0.195358]
[1729670256435,3.45784,2602.8,2602.6,0.195358]
[1729670261756,3.45775,2602.9,2602.6,1.89573478]
[1729670262789,4.26995,2603.0,2602.7,1.70037678]
[1729670262999,4.26995,2603.0,2602.8,1.70037678]
[1729670263202,4.26995,2603.0,2602.7,1.70037678]
[1729670265288,7.72757,2603.0,2602.7,1.70037678]
[1729670265652,4.26992,2603.0,2602.7,1.70037678]
[1729670266283,3.45704,2603.4,2602.9,5.15802678]
[1729670266488,3.45704,2603.4,2603.0,1.70037678]
[1729670266792,3.45704,2603.4,2602.9,1.70037678]
[1729670266993,3.45704,2603.4,2603.0,1.70037678]
[1729670267205,3.45704,2603.4,2602.9,1.70037678]
[1729670268308,3.45704,2603.4,2603.0,1.70037678]
[1729670269212,3.01,2604.0,2603.0,1.70037678]
[1729670269213,0.7861,2604.2,2603.4,0.5786]
[1729670269513,0.7861,2604.2,2603.7,1.70037678]
[1729670269514,3.45622,2604.0,2603.7,1.70037678]
[1729670269687,3.45622,2604.0,2603.5,3.45687]
[1729670270086,3.45622,2604.0,2603.5,4.28669805]
[1729670270399,3.45622,2604.0,2603.6,1.70037678]
[1729670272517,3.45616,2604.1,2603.9,1.70037678]
[1729670272808,3.45622,2604.0,2603.6,1.70037678]
[1729670273144,0.7506,2603.9,2603.5,2.53020483]
[1729670273321,0.7506,2603.9,2603.5,0.82982805]
[1729670273322,4.20696,2603.9,2603.5,0.82982805]
[1729670273684,4.20696,2603.9,2603.5,2.53020483]
[1729670274017,0.7506,2603.9,2603.6,2.29909326]
[1729670274184,0.7506,2603.9,2603.6,0.59871648]
[1729670274574,4.20697,2603.9,2603.6,0.59871648]
[1729670274803,3.45661,2603.8,2603.3,3.45705]
[1729670275104,3.45661,2603.8,2603.3,5.15742678]
[1729670275474,3.45661,2603.8,2603.3,1.70037678]
[1729670275674,1.70037678,2603.7,2603.1,4.03597]
[1729670275908,4.25063,2603.6,2603.2,0.5376585]
[1729670276092,4.25063,2603.6,2603.1,5.15774678]
[1729670276529,0.7938,2603.6,2602.9,4.0362]
[1729670276695,0.8216,2603.2,2602.8,3.45774]
[1729670276916,0.8216,2603.2,2602.6,0.195358]
[1729670276917,3.45749,2603.1,2602.6,0.195358]
[1729670277225,4.27889,2603.2,2602.6,1.89573478]
[1729670277386,3.45753,2603.1,2602.6,1.89573478]
[1729670277590,7.73626,2603.2,2602.8,1.70037678]
[1729670277826,3.45749,2603.1,2602.8,1.70037678]
[1729670278128,4.27889,2603.2,2602.8,1.70037678]
[1729670278293,7.73629,2603.2,2602.8,1.70037678]
[1729670278625,4.27889,2603.2,2602.8,1.70037678]
[1729670278826,7.73627,2603.2,2602.8,1.70037678]
[1729670279192,4.27889,2603.2,2602.9,1.70037678]
[1729670281428,4.27889,2603.2,2603.0,1.70037678]
[1729670283444,0.7928,2603.6,2603.1,1.70037678]
[1729670283730,3.45703,2603.4,2603.1,2.21618046]
[1729670283907,3.45703,2603.4,2603.1,1.70037678]
[1729670284657,3.45736,2603.2,2603.0,1.70037678]
[1729670284943,4.26792,2603.1,2602.6,7.24659248]
[1729670285119,4.26792,2603.1,2602.9,1.70037678]
[1729670285639,4.26792,2603.1,2602.7,1.12833325]
[1729670285640,7.72541,2603.1,2602.7,1.12833325]
[1729670285943,4.26792,2603.1,2602.9,1.70037678]
[1729670286149,6.91448,2603.3,2603.0,1.70037678]
[1729670286307,6.91447,2603.3,2603.0,1.70037678]
[1729670286505,3.4573,2603.2,2602.9,1.70037678]
[1729670286731,3.45734,2603.2,2602.9,1.70037678]
[1729670287348,3.45743,2603.1,2602.8,1.70037678]
[1729670287505,3.45743,2603.1,2602.7,1.70693325]
[1729670287506,3.45743,2603.1,2602.9,1.70037678]
[1729670288005,3.45743,2603.1,2603.0,1.70037678]
[1729670288240,3.45743,2603.1,2602.9,1.70037678]
[1729670289950,3.45723,2603.3,2603.0,1.70037678]
[1729670290124,3.45723,2603.3,2603.1,1.70037678]
[1729670290635,3.45728,2603.2,2603.0,1.70037678]
[1729670291009,3.45722,2603.3,2603.0,1.70037678]
[1729670291238,6.91446,2603.3,2603.0,1.70037678]
[1729670291448,3.45722,2603.3,2603.0,1.70037678]
[1729670291745,0.7852,2603.4,2603.0,1.70037678]
[1729670291746,3.45731,2603.2,2603.0,1.70037678]
[1729670292307,0.7852,2603.4,2603.1,1.70037678]
[1729670292506,0.7852,2603.4,2603.2,1.70037678]
[1729670292507,4.24229,2603.4,2603.2,1.70037678]
[1729670292707,0.7852,2603.4,2603.1,1.70037678]
[1729670292989,0.7852,2603.4,2603.1,2.21617146]
[1729670293642,7.74486,2603.6,2603.2,1.70037678]
[1729670293848,3.45696,2603.5,2603.2,1.70037678]
[1729670294220,3.45696,2603.5,2603.0,3.45745]
[1729670294221,0.824,2603.0,2602.6,0.195358]
[1729670294523,3.45791,2602.8,2602.6,0.195358]
[1729670294844,3.45791,2602.8,2602.6,1.89573478]
[1729670296740,3.4578,2602.9,2602.7,1.70037678]
[1729670296908,3.4578,2602.9,2602.8,1.70037678]
[1729670297113,4.28155,2603.0,2602.8,1.70037678]
[1729670297312,4.28155,2603.0,2602.7,1.70037678]
[1729670297738,0.824,2603.0,2602.7,1.70037678]
[1729670297920,3.45768,2602.9,2602.7,1.70037678]
[1729670298336,3.45768,2602.9,2602.6,1.89573478]
[1729670298537,3.45755,2603.0,2602.8,1.70037678]
[1729670298851,3.45755,2603.0,2602.7,1.70037678]
[1729670300044,6.91519,2603.0,2602.7,1.70037678]
[1729670300245,3.45755,2603.0,2602.7,1.70037678]
[1729670300454,3.45768,2602.9,2602.6,2.47433478]
[1729670301342,3.45768,2602.9,2602.7,1.70037678]
[1729670301543,3.45768,2602.9,2602.6,2.47433478]
[1729670301853,3.45768,2602.9,2602.6,1.89573478]
[1729670302470,3.45783,2602.8,2602.6,0.195358]
[1729670303557,4.25443,2602.8,2602.6,0.195358]
[1729670303722,4.25443,2602.8,2602.6,1.89573478]
[1729670304060,0.7966,2602.8,2602.6,1.89573478]
[1729670304919,4.25448,2602.8,2602.6,0.195358]
[1729670306224,3.45794,2602.7,2602.6,0.195358]
[1729670307543,4.25442,2602.8,2602.6,0.195358]
[1729670314239,3.45794,2602.7,2602.6,0.195358]
[1729670320268,3.44296081,2602.7,2602.6,0.195358]
[1729670322694,4.25442,2602.8,2602.6,0.195358]
[1729670323554,3.45752,2603.1,2602.7,2.27897678]
[1729670323754,3.45724,2603.3,2602.8,2.29361626]
[1729670323755,3.45729,2603.2,2602.8,2.29361626]
[1729670323975,3.45743,2603.1,2602.7,5.73691678]
[1729670324473,3.45743,2603.1,2602.8,1.70037678]
[1729670324674,3.45729,2603.2,2602.8,1.70037678]
[1729670324879,3.45729,2603.2,2602.7,4.03654]
[1729670324880,3.45724,2603.3,2602.9,1.70037678]
[1729670325082,3.45723,2603.3,2602.9,1.70037678]
[1729670325330,3.45723,2603.3,2603.0,2.22387171]
[1729670325455,3.45728,2603.2,2602.8,1.77720932]
[1729670325796,3.45717,2603.3,2602.8,1.77720932]
[1729670326120,6.91442,2603.3,2602.9,1.70037678]
[1729670326249,3.45717,2603.3,2602.8,1.77720932]
[1729670326453,3.45728,2603.2,2602.8,1.77720932]
[1729670326690,3.45728,2603.2,2602.9,0.58137293]
[1729670326892,3.45714,2603.4,2602.9,2.28174971]
[1729670327059,3.45721,2603.3,2602.9,2.28174971]
[1729670330277,3.45721,2603.3,2602.9,0.58137293]
[1729670331613,3.45721,2603.3,2602.9,2.28174971]
[1729670332479,3.45721,2603.3,2602.9,5.73940971]
[1729670332878,3.45721,2603.3,2603.0,0.57394097]
[1729670333013,4.26661,2603.5,2603.1,0.5786]
[1729670333227,3.45703,2603.4,2603.1,0.5786]
[1729670335526,3.45717,2603.3,2602.9,5.73657678]
[1729670335721,3.45717,2603.3,2603.0,0.57365768]
[1729670337737,3.45701,2603.4,2603.0,0.57365768]
[1729670337939,4.2666,2603.5,2603.1,1.70037678]
[1729670338139,7.7236,2603.5,2603.0,2.27403446]
[1729670338442,3.4569,2603.5,2603.1,2.33140023]
[1729670338611,3.4569,2603.5,2603.1,0.63102345]
[1729670339024,3.45703,2603.4,2603.1,2.33140023]
[1729670339235,3.45703,2603.4,2603.1,0.63102345]
[1729670339599,3.45722,2603.3,2602.9,2.27897678]
[1729670340209,3.45722,2603.3,2603.0,1.70037678]
[1729670340416,4.23922,2603.4,2603.0,1.70037678]
[1729670340638,3.45721,2603.3,2603.0,1.70037678]
[1729670340842,3.45721,2603.3,2603.0,2.27404846]
[1729670341208,3.45689,2603.5,2603.0,2.27404846]
[1729670341407,6.91387,2603.5,2603.0,2.27404846]
[1729670341737,3.45689,2603.5,2603.0,2.27404846]
[1729670341916,3.45716,2603.3,2603.0,2.27404846]
[1729670342314,3.45716,2603.3,2603.0,0.57367168]
[1729670342506,3.45716,2603.3,2603.0,2.27404846]
[1729670343307,3.45689,2603.5,2603.0,2.27404846]
[1729670343543,3.45702,2603.4,2603.0,2.27404846]
[1729670344043,3.45702,2603.4,2603.1,1.70037678]
[1729670345406,5.94570678,2603.6,2603.1,1.70037678]
[1729670345645,3.45702,2603.4,2603.1,1.70037678]
[1729670345844,3.45702,2603.4,2603.0,2.27404846]
[1729670346552,6.9141,2603.4,2603.0,2.27404846]
[1729670346707,3.45702,2603.4,2603.1,1.70037678]
[1729670347210,3.45702,2603.4,2603.0,2.27404846]
[1729670347547,3.45702,2603.4,2603.1,1.70037678]
[1729670348339,3.45702,2603.4,2603.0,2.27404846]
[1729670348546,3.45702,2603.4,2603.0,0.57367168]
[1729670348547,3.45723,2603.3,2603.0,0.57367168]
[1729670348743,4.22563,2603.3,2602.9,0.5786]
[1729670349040,0.7684,2603.3,2602.9,5.73664678]
[1729670349538,5.92592678,2603.3,2602.7,3.45785]
[1729670349755,3.45734,2603.2,2602.7,5.15822678]
[1729670350845,1.70037678,2603.0,2602.6,0.195358]
[1729670351047,0.7761,2603.0,2602.6,0.69914485]
[1729670351256,4.23371,2603.0,2602.6,2.39952163]
[1729670355174,0.7761,2603.0,2602.8,1.70037678]
[1729670355584,0.7761,2603.0,2602.7,1.70037678]
[1729670355878,0.7761,2603.0,2602.7,2.63194094]
[1729670356052,0.8006,2603.2,2602.8,1.70037678]
[1729670356377,3.45723,2603.3,2602.9,2.27897678]
[1729670356766,3.45729,2603.2,2602.9,2.27897678]
[1729670356969,3.45715,2603.3,2602.9,0.5786]
[1729670357174,3.45715,2603.3,2603.1,1.70037678]
[1729670357342,3.45688,2603.6,2603.2,1.70037678]
[1729670357952,3.45688,2603.5,2603.2,1.70037678]
[1729670358152,3.45686,2603.6,2603.2,1.70037678]
[1729670358489,3.45702,2603.4,2603.1,1.70037678]
[1729670359287,3.45702,2603.4,2603.1,2.27403046]
[1729670359490,3.45683,2603.6,2603.2,1.70037678]
[1729670359861,3.45688,2603.5,2603.2,1.70037678]
[1729670360065,3.45709,2603.4,2603.0,1.70037678]
[1729670360374,3.45709,2603.4,2603.0,2.27403046]
[1729670361487,4.25638,2603.3,2603.0,0.57365368]
[1729670362563,4.25638,2603.3,2602.9,0.5786]
[1729670362770,4.25638,2603.3,2602.7,6.54269729]
[1729670362954,3.45734,2603.2,2602.8,1.70037678]
[1729670363393,3.45734,2603.2,2602.7,5.73683678]
[1729670363695,3.45734,2603.2,2602.7,6.80682799]
[1729670363989,3.45739,2603.2,2602.7,6.80682799]
[1729670364195,3.45728,2603.2,2602.7,6.80682799]
[1729670364399,5.97812678,2603.0,2602.6,0.69914485]
[1729670364598,4.27775,2603.0,2602.6,0.69914485]
[1729670365355,3.45774,2602.9,2602.6,0.69914485]
[1729670365558,3.4579,2602.8,2602.6,0.195358]
[1729670366726,3.45774,2602.9,2602.6,1.89573478]
[1729670367501,3.45783,2602.8,2602.6,1.89573478]
[1729670368557,3.45774,2602.9,2602.6,1.89573478]
[1729670368760,6.91549,2602.9,2602.6,1.89573478]
[1729670369576,6.91552,2602.9,2602.6,1.89573478]
[1729670369975,6.91552,2602.9,2602.6,0.195358]
[1729670370300,3.45774,2602.9,2602.6,0.195358]
[1729670370671,6.9155,2602.9,2602.6,0.195358]
[1729670372265,6.9155,2602.9,2602.6,1.89573478]